lending/lending_fUSD_20240509
["ID","MTS","AMOUNT","RATE_DAILY","PERIOD"]
[326742903,1715296238792,-554.84517864,0.00012998,2]
[326742904,1715296238801,-155.0,0.00012998,2]
[326742905,1715296238810,-5551.89418728,0.00012998,2]
[326742906,1715296238819,-378.02727521,0.00012998,2]
[326742907,1715296238829,-4271.31667855,0.00012998,2]
[326742908,1715296238838,-3083.85801135,0.00012998,2]
[326742909,1715296238847,-4736.48162627,0.00012998,2]
[326742910,1715296238857,-179.58862364,0.00012998,2]
[326742911,1715296238866,-324.0890106,0.00012998,2]
[326742912,1715296238875,-1325.97003301,0.00012998,2]
[326742913,1715296238884,-360.01550888,0.00012998,2]
[326742914,1715296238893,-3697.29672041,0.00012998,2]
[326742915,1715296238902,-155.0,0.00012998,2]
[326742916,1715296238911,-162.11231848,0.00012998,2]
[326742917,1715296238920,-155.0,0.00012998,2]
[326742918,1715296238929,-155.0,0.00012998,2]
[326742919,1715296238939,-363.81807592,0.00012998,2]
[326742920,1715296238948,-220.5413736,0.00012998,2]
[326742921,1715296238957,-155.0,0.00012998,2]
[326742922,1715296238966,-586.16293106,0.00012998,2]
[326742923,1715296238978,-493.22520156,0.00012999,2]
[326742924,1715296238987,-161.77912912,0.00012999,2]
[326742925,1715296238997,-711.54040194,0.00012999,2]
[326742926,1715296239006,-1109770.32839098,0.00013,2]
[326742927,1715296239015,-2000.0,0.00013,2]
[326742928,1715296239024,-200.0,0.00013,2]
[326742929,1715296239034,-200.0,0.00013,2]
[326742930,1715296239043,-2000.0,0.0001313,2]
[326742931,1715296239052,-635.34,0.00013333,2]
[326742932,1715296239062,-175.58,0.00013425,2]
[326742933,1715296239071,-3244.92249277,0.00013679,2]
[326742934,1715296239080,-500.0,0.00013698,2]
[326742935,1715296239090,-247.38,0.00014003,2]
[326742936,1715296239099,-1583.37,0.00014119,2]
[326742937,1715296239108,-386.19,0.00014182,2]
[326742938,1715296239117,-635.34,0.00014999,2]
[326742939,1715296239127,-1461.15626,0.0001537,2]
[326742940,1715296239137,-426.83296022,0.00015426,2]
[326742941,1715296239147,-3244.92249271,0.0001549,2]
[326742942,1715296239157,-155.0,0.000155,2]
[326742943,1715296239167,-386.19,0.00015955,2]
[326742944,1715296239177,-688.2,0.00016152,2]
[326742945,1715296239187,-635.34,0.00016666,2]
[326742946,1715296239197,-1583.37,0.00016859,2]
[326742947,1715296239206,-916.47227892,0.0001715,2]
[326742948,1715296239216,-3244.92249271,0.00017301,2]
[326742949,1715296239225,-386.19,0.00017728,2]
[326742950,1715296239235,-1461.15626,0.0001787,2]
[326742951,1715296239245,-9337.3390416,0.0001788,2]
[326742952,1715296239254,-9337.33904155,0.0001788,2]
[326742953,1715296239264,-9337.33904155,0.0001788,2]
[326742954,1715296239273,-987.77728567,0.0001788,2]
[326742955,1715296239283,-987.77728561,0.0001788,2]
[326742956,1715296239292,-987.77728561,0.0001788,2]
[326742957,1715296239302,-426.83296022,0.00017953,2]
[326742958,1715296239311,-688.2,0.0001817,2]
[326742959,1715296239321,-635.34,0.00018332,2]
[326742960,1715296239331,-500.0,0.000185,2]
[326742961,1715296239340,-252.0,0.000189,5]
[326742962,1715296239350,-5000.0,0.00019,2]
[326742963,1715296239360,-1854.0,0.00019,3]
[326742964,1715296239370,-987.77728561,0.00019002,2]
[326742965,1715296239380,-9337.33904155,0.00019032,2]
[326742966,1715296239389,-3244.92249271,0.00019111,2]
[326742967,1715296239399,-156.65,0.00019178,2]
[326742968,1715296239409,-150.39,0.00019178,2]
[326742969,1715296239418,-153.62,0.00019178,2]
[326742970,1715296239428,-3876.01243216,0.000192,2]
[326742971,1715296239438,-386.19,0.00019501,2]
[326742972,1715296239447,-174.93023132,0.000199,2]
[326742973,1715296239457,-635.34,0.00019999,2]
[326742974,1715296239466,-256.01230751,0.0002,2]
[326742975,1715296239476,-6213.40373582,0.0002,2]
[326742976,1715296239486,-155.3230069,0.0002,2]
[326742977,1715296239496,-778.49,0.00020145,2]
[326742978,1715296239505,-688.2,0.00020189,2]
[326742979,1715296239515,-1461.15626,0.0002037,2]
[326742980,1715296239525,-426.83296022,0.00020479,2]
[326742981,1715296239535,-3244.92249271,0.00020922,2]
[326742982,1715296239545,-2209.89208006,0.00021,2]
[326742983,1715296239555,-987.77728561,0.00021069,2]
[326742984,1715296239565,-9337.33904155,0.00021109,2]
[326742985,1715296239574,-386.19,0.00021274,2]
[326742986,1715296239584,-916.47227892,0.000214,2]
[326742987,1715296239593,-2000.0,0.00021918,2]
[326742988,1715296239604,-250.0,0.00021918,2]
[326742989,1715296239613,-166.82187658,0.00022153,2]
[326742990,1715296239623,-688.2,0.00022208,2]
[326742991,1715296239633,-6683.79351995,0.0002223,2]
[326742992,1715296239643,-3244.92249271,0.00022733,2]
[326742993,1715296239653,-1461.15625,0.0002287,2]
[326742994,1715296239668,-426.83296022,0.00023005,2]
[326742995,1715296239678,-987.77728561,0.00023137,2]
[326742996,1715296239689,-150.64,0.00023177,2]
[326742997,1715296239699,-9337.33904155,0.00023187,2]
[326742998,1715296239709,-150.0,0.00023783,5]
[326742999,1715296239719,-688.2,0.00024227,2]
[326743000,1715296239730,-3244.92249271,0.00024544,2]
[326743001,1715296239743,-1270.59201251,0.00025,2]
[326743002,1715296239753,-3367.73840261,0.00025,30]
[326743003,1715296239763,-987.77728561,0.00025204,2]
[326743004,1715296239773,-247.38,0.00025236,2]
[326743005,1715296239782,-9337.33904155,0.00025264,2]
[326743006,1715296239792,-1461.15626,0.0002537,2]
[326743007,1715296239801,-426.83296022,0.00025531,2]
[326743008,1715296239811,-916.47227892,0.0002565,2]
[326743009,1715296239821,-9083.89932567,0.000258,2]
[326743010,1715296239831,-3244.92249271,0.00026355,2]
[326743011,1715296239842,-220.68,0.00027068,15]
[326743012,1715296239851,-716.31158774,0.00027202,2]
[326743013,1715296239861,-987.77728561,0.00027271,2]
[326743014,1715296239870,-9337.33904155,0.00027341,2]
[326743015,1715296239880,-1224.88,0.00027397,4]
[326743016,1715296239890,-1224.88,0.00027397,4]
[326743018,1715296239900,-1224.88,0.00027397,4]
[326743019,1715296239909,-1224.88,0.00027397,4]
[326743021,1715296239919,-1224.88,0.00027397,4]
[326743023,1715296239928,-1224.88,0.00027397,4]
[326743024,1715296239938,-1224.88,0.00027397,4]
[326743025,1715296239947,-1224.88,0.00027397,4]
[326743026,1715296239957,-1224.88,0.00027397,4]
[326743027,1715296239966,-1224.88,0.00027397,4]
[326743028,1715296239975,-1224.88,0.00027397,4]
[326743029,1715296239987,-1224.88,0.00027397,4]
[326743030,1715296239997,-1224.88,0.00027397,4]
[326743031,1715296240006,-1224.88,0.00027397,4]
[326743032,1715296240015,-1224.88,0.00027397,4]
[326743033,1715296240025,-1224.88,0.00027397,4]
[326743034,1715296240035,-1224.88,0.00027397,4]
[326743035,1715296240045,-1224.88,0.00027397,4]
[326743036,1715296240055,-1224.88,0.00027397,4]
[326743037,1715296240065,-1224.88,0.00027397,4]
[326743038,1715296240074,-1224.88,0.00027397,4]
[326743039,1715296240083,-1224.88,0.00027397,4]
[326743040,1715296240093,-1224.88,0.00027397,4]
[326743041,1715296240103,-1224.99,0.00027397,4]
[326743042,1715296240112,-10936.44,0.00027397,4]
[326743043,1715296240121,-10936.44,0.00027397,4]
[326743044,1715296240131,-10936.44,0.00027397,4]
[326743045,1715296240140,-10936.44,0.00027397,4]
[326743046,1715296240150,-10936.44,0.00027397,4]
[326743047,1715296240160,-10936.44,0.00027397,4]
[326743048,1715296240169,-1630.82,0.00027397,10]
[326743049,1715296240179,-426.83296022,0.00028058,2]
[326743050,1715296240189,-3244.92249271,0.00028166,2]
[326743051,1715296240199,-153.62,0.0002824,2]
[326743052,1715296240209,-2500.0,0.000286,2]
[326743053,1715296240218,-609.95985048,0.00028713,2]
[326743054,1715296240228,-267.0,0.0002897,15]
[326743055,1715296240238,-267.0,0.0002898,15]
[326743056,1715296240247,-267.0,0.0002899,15]
[326743057,1715296240256,-1500.0,0.000291,2]
[326743058,1715296240267,-987.77728561,0.00029339,2]
[326743059,1715296240276,-9337.33904155,0.00029419,2]
[326743060,1715296240286,-157.051007,0.00029498,23]
[326743061,1715296240296,-1500.0,0.000296,2]
[326743062,1715296240306,-916.47227892,0.000299,2]
[326743063,1715296240316,-561.18150974,0.000299,2]
[326743064,1715296240325,-166.01215534,0.000299,2]
[326743065,1715296240335,-189.37409392,0.000299,2]
[326743066,1715296240345,-2064.83988064,0.000299,2]
[326743067,1715296240355,-252.02181648,0.00029925,2]
[326743068,1715296240364,-3244.92249271,0.00029976,2]
[326743069,1715296240374,-435.76103741,0.00029989,2]
[326743070,1715296240383,-150.64,0.00029989,2]
[326743071,1715296240392,-150.64,0.0002999,2]
[326743072,1715296240402,-150.64,0.0002999,2]
[326743073,1715296240412,-150.64,0.0002999,2]
[326743074,1715296240421,-435.76103741,0.0002999,2]
[326743075,1715296240431,-150.64,0.0002999,2]
[326743076,1715296240440,-150.64,0.0002999,2]
[326743077,1715296240450,-150.64,0.0002999,2]
[326743078,1715296240460,-150.64,0.0002999,2]
[326743079,1715296240469,-150.64,0.0002999,2]
[326743080,1715296240479,-150.64,0.0002999,2]
[326743081,1715296240489,-150.64,0.0002999,2]
[326743082,1715296240500,-150.64,0.0002999,2]
[326743083,1715296240509,-150.64,0.0002999,2]
[326743084,1715296240519,-10936.44,0.00029998,4]
[326743085,1715296240528,-2614.39,0.00029999,120]
[326743086,1715296240538,-10936.44,0.00029999,4]
[326743087,1715296240547,-10936.44,0.00029999,4]
[326743088,1715296240557,-10936.44,0.00029999,4]
[326743089,1715296240567,-10936.44,0.00029999,4]
[326743090,1715296240577,-10936.44,0.00029999,4]
[326743091,1715296240587,-10936.44,0.00029999,4]
[326743092,1715296240596,-10936.44,0.00029999,4]
[326743093,1715296240606,-10936.44,0.00029999,4]
[326743094,1715296240616,-10936.44,0.00029999,4]
[326743095,1715296240625,-10936.44,0.00029999,4]
[326743096,1715296240635,-10936.44,0.00029999,4]
[326743097,1715296240645,-10936.44,0.00029999,4]
[326743098,1715296240658,-713124.53317241,0.0003,15]
[326743099,1715296240668,-1147.08444075,0.0003,5]
[326743100,1715296240677,-375.69214849,0.0003,2]
[326743101,1715296240688,-347.77567057,0.0003,2]
[326743102,1715296240698,-574.06584723,0.0003,7]
[326743103,1715296240707,-1704.69908196,0.0003,2]
[326743104,1715296240717,-1401.0,0.0003,2]
[326743105,1715296240727,-832.13626007,0.0003,120]
[326743106,1715296240736,-4711.0,0.0003,15]
[326743107,1715296240748,-914839.34857179,0.0003,2]
[326743108,1715296241770,-634.29,0.0003,2]
[326743109,1715296241784,-3121.20036236,0.0003,2]
[326743110,1715296241796,-25983.575892,0.0003,2]
[326743111,1715296241808,-758765.33458609,0.0003,2]
[326743112,1715296241919,-150.0,0.00025439,7]
[326743113,1715296241928,-1406.09636406,0.0003,2]
[326743147,1715296242931,-150.0,0.00027095,7]
[326743149,1715296242940,-149.66814268,0.0003,2]
[326743152,1715296242953,-1204.09139496,0.0003,2]
[326743154,1715296242965,-18804.9323831,0.0003,2]
[326743156,1715296242976,-6187.4,0.0003,2]
[326743160,1715296243009,-150.0,0.00028751,7]
[326743161,1715296243018,-794.87274782,0.0003,2]
[326743162,1715296243029,-1067.5,0.0003,2]
[326743182,1715296243608,-832.01,0.00020546,2]
[326743184,1715296243619,-5093.03521806,0.000299,2]
[326743187,1715296243628,-237406.74466424,0.0003,2]
[326743189,1715296243639,-513.18500005,0.0003,2]
[326743191,1715296243650,-409.987,0.0003,2]
[326743193,1715296243665,-925.27837994,0.0003,2]
[326743197,1715296243691,-153150.62939047,0.0003,2]
[326743199,1715296243703,-1098.81,0.0003,2]
[326743201,1715296243714,-13853.54646977,0.0003,2]
[326743203,1715296243726,-63477.0,0.0003,2]
[326743206,1715296243741,-5190.29006609,0.0003,2]
[326743208,1715296243751,-2164.552005,0.0003,2]
[326743210,1715296243762,-7061.20590217,0.0003,2]
[326743212,1715296243773,-433.003431,0.0003,2]
[326743226,1715296245867,-277.41527605,0.00017259,2]
[326743227,1715296245879,-1202.11722395,0.0003,2]
[326743228,1715296245894,-1090.353,0.0003,2]
[326743229,1715296245909,-1246.65382988,0.0003,2]
[326743230,1715296246082,-28087.09083243,0.0003,2]
[326743231,1715296246095,-157.051007,0.00030098,30]
[326743232,1715296246107,-1500.0,0.000301,2]
[326743233,1715296246120,-198.7,0.000301,4]
[326743234,1715296246132,-150.64,0.00030126,2]
[326743235,1715296246142,-1000.8596,0.00030126,2]
[326743236,1715296246154,-10936.44,0.00030134,4]
[326743237,1715296246165,-10936.44,0.00030134,4]
[326743238,1715296246182,-10936.44,0.00030134,4]
[326743239,1715296246193,-10936.44,0.00030134,4]
[326743240,1715296246204,-10936.44142913,0.00030134,4]
[326743242,1715296246215,-500.0,0.00030136,4]
[326743243,1715296246226,-500.0,0.00030136,4]
[326743244,1715296246250,-500.0,0.00030136,4]
[326743245,1715296246266,-500.0,0.00030136,4]
[326743246,1715296246281,-500.0,0.00030136,4]
[326743247,1715296246293,-511.8396422,0.00030136,4]
[326743248,1715296246307,-500.0,0.00030136,4]
[326743249,1715296246319,-509.88636732,0.00030136,4]
[326743250,1715296246333,-500.0,0.00030136,4]
[326743251,1715296246346,-626.25936411,0.00030136,4]
[326743252,1715296246359,-500.0,0.00030136,4]
[326743253,1715296246374,-500.0,0.00030136,4]
[326743254,1715296246387,-500.0,0.00030136,4]
[326743255,1715296246399,-500.0,0.00030136,4]
[326743256,1715296246411,-343.57776458,0.00030136,4]
[326743257,1715296246423,-242.94496253,0.00030136,4]
[326743258,1715296246436,-500.0,0.00030136,4]
[326743259,1715296246448,-500.0,0.00030136,4]
[326743260,1715296246462,-500.0,0.00030136,4]
[326743261,1715296246474,-500.0,0.00030136,4]
[326743262,1715296246489,-540.38951789,0.00030136,4]
[326743263,1715296246500,-349.25603511,0.00030136,4]
[326743264,1715296246513,-200.0,0.00030136,4]
[326743265,1715296246526,-594.69154238,0.00030136,4]
[326743266,1715296246537,-510.70910627,0.00030136,4]
[326743267,1715296246552,-500.0,0.00030136,4]
[326743268,1715296246563,-500.0,0.00030136,4]
[326743269,1715296246576,-500.0,0.00030136,4]
[326743270,1715296246589,-500.0,0.00030136,4]
[326743271,1715296246601,-513.44816073,0.00030136,4]
[326743272,1715296246613,-347.34178836,0.00030136,4]
[326743273,1715296246624,-500.0,0.00030136,4]
[326743274,1715296246636,-500.0,0.00030136,4]
[326743275,1715296246647,-337.00593495,0.00030136,4]
[326743276,1715296246663,-549.57085024,0.00030136,4]
[326743277,1715296246674,-524.39677787,0.00030136,4]
[326743278,1715296246686,-500.0,0.00030136,4]
[326743279,1715296246697,-500.0,0.00030136,4]
[326743280,1715296246708,-500.0,0.00030136,4]
[326743281,1715296246719,-500.0,0.00030136,4]
[326743282,1715296246732,-500.0,0.00030136,4]
[326743283,1715296246743,-500.0,0.00030136,4]
[326743284,1715296246755,-404.03736585,0.00030136,4]
[326743285,1715296246766,-527.72915044,0.00030136,4]
[326743286,1715296246777,-232.59774253,0.00030136,4]
[326743287,1715296246788,-500.0,0.00030136,4]
[326743288,1715296246799,-500.0,0.00030136,4]
[326743289,1715296246810,-500.0,0.00030136,4]
[326743290,1715296246828,-500.0,0.00030136,4]
[326743291,1715296246844,-757.31,0.00030136,4]
[326743292,1715296246858,-500.0,0.00030136,4]
[326743293,1715296246871,-1051.8,0.00030136,4]
[326743294,1715296246885,-171.53036172,0.00030136,4]
[326743295,1715296246900,-500.0,0.00030136,4]
[326743296,1715296246914,-500.0,0.00030136,4]
[326743297,1715296246928,-1053.66,0.00030136,4]
[326743298,1715296246944,-442.51952049,0.00030136,4]
[326743299,1715296246959,-500.0,0.00030136,4]
[326743300,1715296246972,-591.49,0.00030136,4]
[326743301,1715296246988,-500.0,0.00030136,4]
[326743302,1715296247000,-500.0,0.00030136,4]
[326743303,1715296247014,-151.0,0.00030136,7]
[326743304,1715296247027,-500.0,0.00030136,4]
[326743305,1715296247040,-500.0,0.00030136,4]
[326743306,1715296247053,-500.0,0.00030136,4]
[326743307,1715296247065,-664.28,0.00030136,4]
[326743308,1715296247077,-500.0,0.00030136,4]
[326743309,1715296247089,-973.21,0.00030136,4]
[326743310,1715296247101,-915.48,0.00030136,4]
[326743311,1715296247114,-500.0,0.00030136,4]
[326743312,1715296247128,-151.0,0.00030136,7]
[326743313,1715296247139,-500.0,0.00030136,4]
[326743314,1715296247152,-500.0,0.00030136,4]
[326743315,1715296247165,-1007.13,0.00030136,4]
[326743316,1715296247178,-603.56,0.00030136,4]
[326743317,1715296247190,-500.0,0.00030136,4]
[326743318,1715296247202,-500.0,0.00030136,4]
[326743319,1715296247213,-500.0,0.00030136,4]
[326743320,1715296247225,-500.0,0.00030136,4]
[326743321,1715296247238,-548.14,0.00030136,4]
[326743322,1715296247250,-504.9140437,0.00030136,4]
[326743323,1715296247261,-633.45,0.00030136,4]
[326743324,1715296247273,-1200.0,0.00030136,2]
[326743325,1715296247284,-690.68,0.00030136,4]
[326743326,1715296247296,-500.0,0.00030136,4]
[326743327,1715296247307,-568.35712768,0.00030136,4]
[326743328,1715296247319,-500.0,0.00030136,4]
[326743329,1715296247331,-500.0,0.00030136,4]
[326743330,1715296247343,-516.69246121,0.00030136,4]
[326743331,1715296247355,-500.0,0.00030136,4]
[326743332,1715296247366,-500.0,0.00030136,4]
[326743333,1715296247378,-500.0,0.00030136,4]
[326743334,1715296247392,-500.0,0.00030136,4]
[326743335,1715296247404,-556.62987513,0.00030136,4]
[326743336,1715296247416,-500.0,0.00030136,4]
[326743337,1715296247428,-515.74692634,0.00030136,4]
[326743338,1715296247441,-500.0,0.00030136,4]
[326743339,1715296247453,-500.0,0.00030136,4]
[326743340,1715296247465,-500.0,0.00030136,4]
[326743341,1715296247476,-1276.24,0.00030136,4]
[326743342,1715296247488,-500.0,0.00030136,4]
[326743343,1715296247499,-631.11,0.00030136,4]
[326743344,1715296247510,-500.0,0.00030136,4]
[326743345,1715296247522,-510.21,0.00030136,4]
[326743346,1715296247533,-1105.8,0.00030136,4]
[326743347,1715296247544,-500.86863161,0.00030136,4]
[326743348,1715296247555,-500.0,0.00030136,4]
[326743349,1715296247567,-682.22,0.00030136,4]
[326743350,1715296247579,-788.62,0.00030136,4]
[326743351,1715296247590,-500.0,0.00030136,4]
[326743352,1715296247601,-916.67,0.00030136,4]
[326743353,1715296247612,-500.0,0.00030136,4]
[326743354,1715296247623,-500.0,0.00030136,4]
[326743355,1715296247634,-500.0,0.00030136,4]
[326743356,1715296247645,-835.89,0.00030136,4]
[326743357,1715296247658,-500.0,0.00030136,4]
[326743358,1715296247671,-500.0,0.00030136,4]
[326743359,1715296247682,-500.0,0.00030136,4]
[326743360,1715296247693,-500.0,0.00030136,4]
[326743361,1715296247703,-500.0,0.00030136,4]
[326743362,1715296247714,-500.0,0.00030136,4]
[326743363,1715296247725,-152.027302,0.00030136,7]
[326743364,1715296247739,-805.87,0.00030136,4]
[326743365,1715296247751,-500.0,0.00030136,4]
[326743366,1715296247761,-500.0,0.00030136,4]
[326743367,1715296247772,-500.0,0.00030136,4]
[326743368,1715296247783,-500.0,0.00030136,4]
[326743369,1715296247794,-500.0,0.00030136,4]
[326743370,1715296247805,-500.0,0.00030136,4]
[326743371,1715296247816,-500.0,0.00030136,4]
[326743372,1715296247828,-798.62,0.00030136,4]
[326743373,1715296247841,-500.0,0.00030136,4]
[326743374,1715296247852,-1611.79,0.00030136,4]
[326743375,1715296247864,-500.0,0.00030136,4]
[326743376,1715296247875,-500.0,0.00030136,4]
[326743377,1715296247886,-500.0,0.00030136,4]
[326743378,1715296247898,-677.1,0.00030136,4]
[326743379,1715296247908,-560.12,0.00030136,4]
[326743380,1715296247921,-568.53,0.00030136,4]
[326743381,1715296247934,-506.2930156,0.00030136,4]
[326743382,1715296247945,-500.0,0.00030136,4]
[326743383,1715296247955,-577.76,0.00030136,4]
[326743384,1715296247966,-863.28,0.00030136,4]
[326743385,1715296247977,-500.0,0.00030136,4]
[326743386,1715296247988,-500.0,0.00030136,4]
[326743387,1715296247999,-1865.41,0.00030136,4]
[326743388,1715296248010,-151.0,0.00030136,7]
[326743389,1715296248022,-151.0,0.00030136,7]
[326743390,1715296248034,-839.43,0.00030136,4]
[326743391,1715296248045,-513.19769148,0.00030136,4]
[326743392,1715296248056,-500.0,0.00030136,4]
[326743393,1715296248067,-500.0,0.00030136,4]
[326743394,1715296248079,-515.18,0.00030136,4]
[326743395,1715296248090,-500.0,0.00030136,4]
[326743396,1715296248101,-2177.33,0.00030136,4]
[326743397,1715296248112,-520.45891474,0.00030136,4]
[326743398,1715296248123,-500.0,0.00030136,4]
[326743399,1715296248134,-500.0,0.00030136,4]
[326743400,1715296248145,-563.09759988,0.00030136,2]
[326743401,1715296248156,-568.86,0.00030136,4]
[326743402,1715296248166,-692.7,0.00030136,4]
[326743403,1715296248178,-881.69,0.00030136,4]
[326743404,1715296248189,-151.0,0.00030136,7]
[326743405,1715296248199,-500.0,0.00030136,4]
[326743406,1715296248211,-920.02,0.00030136,4]
[326743407,1715296248223,-500.0,0.00030136,4]
[326743408,1715296248234,-500.0,0.00030136,4]
[326743409,1715296248245,-963.92,0.00030136,4]
[326743410,1715296248255,-301.3,0.00030136,4]
[326743411,1715296248266,-151.0,0.00030136,7]
[326743412,1715296248277,-500.0,0.00030136,4]
[326743413,1715296248289,-2147.44,0.00030136,4]
[326743414,1715296248300,-500.0,0.00030136,4]
[326743415,1715296248310,-500.0,0.00030136,4]
[326743416,1715296248322,-507.08,0.00030136,4]
[326743417,1715296248332,-152.132319,0.00030136,7]
[326743418,1715296248343,-500.0,0.00030136,4]
[326743419,1715296248356,-766.71,0.00030136,4]
[326743420,1715296248367,-500.0,0.00030136,4]
[326743421,1715296248378,-500.0,0.00030136,4]
[326743422,1715296248388,-561.92,0.00030136,4]
[326743423,1715296248399,-500.0,0.00030136,4]
[326743424,1715296248410,-500.0,0.00030136,4]
[326743425,1715296248421,-500.0,0.00030136,4]
[326743426,1715296248432,-500.0,0.00030136,4]
[326743427,1715296248443,-500.0,0.00030136,4]
[326743428,1715296248454,-2439.48,0.00030136,4]
[326743429,1715296248465,-500.0,0.00030136,4]
[326743430,1715296248476,-500.0,0.00030136,4]
[326743431,1715296248488,-500.0,0.00030136,4]
[326743432,1715296248499,-500.0,0.00030136,4]
[326743433,1715296248510,-507.42550479,0.00030136,4]
[326743434,1715296248520,-500.0,0.00030136,4]
[326743435,1715296248531,-660.5,0.00030136,4]
[326743436,1715296248542,-601.29,0.00030136,4]
[326743437,1715296248553,-500.0,0.00030136,4]
[326743438,1715296248564,-293.49173047,0.00030136,4]
[326743439,1715296248576,-500.0,0.00030136,4]
[326743440,1715296248587,-500.0,0.00030136,4]
[326743441,1715296248598,-500.0,0.00030136,4]
[326743442,1715296248610,-963.39167296,0.00030136,4]
[326743443,1715296248641,-777.90832704,0.00030136,4]
[326743444,1715296248653,-1304.77,0.00030136,4]
[326743445,1715296248667,-434.99698739,0.00030136,4]
[326743446,1715296248680,-65.00301261,0.00030136,4]
[326743447,1715296248691,-500.0,0.00030136,4]
[326743448,1715296248703,-500.0,0.00030136,4]
[326743449,1715296248713,-500.0,0.00030136,4]
[326743450,1715296248722,-384.28339651,0.00030136,4]
[326743451,1715296248734,-500.0,0.00030136,4]
[326743452,1715296248743,-500.0,0.00030136,4]
[326743453,1715296248752,-500.0,0.00030136,4]
[326743454,1715296248761,-166.244459,0.00030136,7]
[326743455,1715296248770,-733.15,0.00030136,4]
[326743456,1715296248779,-500.0,0.00030136,4]
[326743457,1715296248788,-500.0,0.00030136,4]
[326743458,1715296248798,-167.9841913,0.00030136,4]
[326743463,1715297397815,6035.35370352,0.0001,3]
[326743465,1715297432096,-157.93402431,0.00012858,2]
[326743467,1715297432106,-167.65434555,0.00012859,2]
[326743469,1715297432116,-363.90234263,0.00012859,2]
[326743471,1715297432126,-155.0,0.0001286,2]
[326743473,1715297432135,-711.76772618,0.0001286,2]
[326743475,1715297432145,-493.31575588,0.00012863,2]
[326743477,1715297432154,-150.0,0.00012897,2]
[326743479,1715297432163,-153.23257464,0.00017049,2]
[326743481,1715297432172,-300.0,0.00017157,2]
[326743483,1715297432182,-1996.07873679,0.00017258,2]
[326743484,1715297432191,-489.41557827,0.00017259,2]
[326743485,1715297432200,-499.99,0.00017534,2]
[326743486,1715297432209,-725.57,0.00017534,2]
[326743487,1715297432218,-150.99,0.00017534,2]
[326743488,1715297432227,-1316.84,0.00017534,2]
[326743489,1715297432236,-491.6694,0.00017651,2]
[326743490,1715297432247,-153.23257449,0.00017751,2]
[326743491,1715297432256,-150.99,0.00017808,2]
[326743492,1715297432266,-153.23257449,0.00018453,2]
[326743493,1715297432276,-500.0,0.000185,2]
[326743494,1715297432285,-153.23257449,0.00019154,2]
[326743495,1715297432295,-162.13,0.00019178,2]
[326743496,1715297432304,-156.65,0.00019178,2]
[326743497,1715297432313,-598.0,0.000196,3]
[326743498,1715297432322,-153.23257449,0.00019856,2]
[326743499,1715297432332,-155.0,0.0002,2]
[326743501,1715297432342,-153.23257449,0.00020558,2]
[326743503,1715297432351,-153.23257449,0.0002126,2]
[326743505,1715297432360,-153.23257449,0.00021961,2]
[326743507,1715297432370,-193.2,0.00022403,2]
[326743508,1715297432380,-250.0,0.00022483,2]
[326743509,1715297432390,-250.0,0.00022518,2]
[326743510,1715297432400,-2000.0,0.00022623,2]
[326743511,1715297432410,-2000.0,0.00022657,3]
[326743512,1715297432419,-153.23257449,0.00022663,2]
[326743513,1715297432428,-250.0,0.0002281,2]
[326743514,1715297432438,-250.0,0.00022845,2]